[Event "Titled Tuesday Blitz December 06 Late 2022"]
[White "Rosen, Eric"]
[Black "Yurasova, Daria"]
[WhiteFideId "2032562"]
[BlackFideId "34146919"]
[WhiteElo "2670"]
[BlackElo "2533"]
[Result "0-1"]
[Round "06"]
[TimeControl "180+1"]
[Date "2022.12.07"]
[WhiteClock "0:00:03"]
[BlackClock "0:00:08"]

1. d4 {[%clk 0:02:52]}  d5 {[%clk 0:03:00]} 2. Bf4 {[%clk 0:02:51]}  Nf6 {[%clk 0:03:00]} 3. e3 {[%clk 0:02:52]}  Bf5 {[%clk 0:03:00]} 4. Nf3 {[%clk 0:02:46]}  e6 {[%clk 0:03:00]} 5. Bd3 {[%clk 0:02:45]}  Bg6 {[%clk 0:02:59]} 6. O-O {[%clk 0:02:41]}  Nbd7 {[%clk 0:02:59]} 7. c4 {[%clk 0:02:38]}  c6 {[%clk 0:02:48]} 8. Nc3 {[%clk 0:02:36]}  Be7 {[%clk 0:02:47]} 9. Rc1 {[%clk 0:02:33]}  O-O {[%clk 0:02:48]} 10. h3 {[%clk 0:02:31]}  Bxd3 {[%clk 0:02:45]} 11. Qxd3 {[%clk 0:02:31]}  Re8 {[%clk 0:02:44]} 12. Rfd1 {[%clk 0:02:26]}  Nf8 {[%clk 0:02:43]} 13. a3 {[%clk 0:02:20]}  Ng6 {[%clk 0:02:43]} 14. Bh2 {[%clk 0:02:20]}  Bd6 {[%clk 0:02:43]} 15. Ne5 {[%clk 0:02:15]}  Rc8 {[%clk 0:02:37]} 16. b4 {[%clk 0:02:14]}  dxc4 {[%clk 0:02:33]} 17. Qxc4 {[%clk 0:02:11]}  Nd5 {[%clk 0:02:33]} 18. Ne4 {[%clk 0:02:05]}  Bb8 {[%clk 0:02:29]} 19. Bg3 {[%clk 0:01:58]}  Qe7 {[%clk 0:02:24]} 20. Qb3 {[%clk 0:01:56]}  Red8 {[%clk 0:02:12]} 21. b5 {[%clk 0:01:35]}  Nxe5 {[%clk 0:02:08]} 22. Bxe5 {[%clk 0:01:32]}  Bxe5 {[%clk 0:02:06]} 23. dxe5 {[%clk 0:01:33]}  cxb5 {[%clk 0:02:05]} 24. Rxc8 {[%clk 0:01:21]}  Rxc8 {[%clk 0:02:03]} 25. Qxb5 {[%clk 0:01:21]}  h6 {[%clk 0:01:46]} 26. Nd6 {[%clk 0:01:19]}  Rc7 {[%clk 0:01:42]} 27. Rd4 {[%clk 0:00:44]}  a6 {[%clk 0:01:22]} 28. Qb2 {[%clk 0:00:36]}  h5 {[%clk 0:00:52]} 29. h4 {[%clk 0:00:31]}  b5 {[%clk 0:00:38]} 30. Qd2 {[%clk 0:00:25]}  Nb6 {[%clk 0:00:35]} 31. g3 {[%clk 0:00:23]}  Nc4 {[%clk 0:00:27]} 32. Qb4 {[%clk 0:00:21]}  Nxe5 {[%clk 0:00:18]} 33. Qa5 {[%clk 0:00:14]}  Nf3+ {[%clk 0:00:18]} 34. Kg2 {[%clk 0:00:05]}  Nxd4 {[%clk 0:00:19]} 35. Qb6 {[%clk 0:00:06]}  Nf5 {[%clk 0:00:16]} 36. Qb8+ {[%clk 0:00:02]}  Kh7 {[%clk 0:00:16]} 37. Ne8 {[%clk 0:00:01]}  Rb7 {[%clk 0:00:14]} 38. Qe5 {[%clk 0:00:01]}  Qxe8 {[%clk 0:00:13]} 39. e4 {[%clk 0:00:02]}  Nh6 {[%clk 0:00:13]} 40. Qxh5 {[%clk 0:00:02]}  Rd7 {[%clk 0:00:12]} 41. g4 {[%clk 0:00:02]}  Qa8 {[%clk 0:00:13]} 42. Qe5 {[%clk 0:00:02]}  Qc6 {[%clk 0:00:09]} 43. g5 {[%clk 0:00:02]}  Ng8 {[%clk 0:00:08]} 44. h5 {[%clk 0:00:02]}  Qd6 {[%clk 0:00:08]} 45. g6+ {[%clk 0:00:02]}  fxg6 {[%clk 0:00:07]} 46. Qg5 {[%clk 0:00:02]}  gxh5 {[%clk 0:00:06]} 47. Qxh5+ {[%clk 0:00:03]}  Nh6 {[%clk 0:00:07]} 48. e5 {[%clk 0:00:03]}  Qd5+ {[%clk 0:00:06]} 49. f3 {[%clk 0:00:03]}  Qd2+ {[%clk 0:00:07]} 50. Kg3 {[%clk 0:00:03]}  Qf4+ {[%clk 0:00:08]} 51. Kf2 {[%clk 0:00:02]}  Rd2+ {[%clk 0:00:07]} 52. Kf1 {[%clk 0:00:03]}  Qe3 {[%clk 0:00:07]} 53. Qh4 {[%clk 0:00:03]}  Qe2+ {[%clk 0:00:07]} 54. Kg1 {[%clk 0:00:03]}  Qg2# {[%clk 0:00:08]} 0-1


[Site "https://www.chess.com"]

[Event "Titled Tuesday Blitz December 06 Late 2022"]
[White "Rustemov, Alexander"]
[Black "Sarana, Alexey"]
[WhiteFideId "4119002"]
[BlackFideId "24133795"]
[WhiteElo "2800"]
[BlackElo "2708"]
[Result "0-1"]
[Round "06"]
[TimeControl "180+1"]
[Date "2022.12.06"]
[WhiteClock "0:00:14"]
[BlackClock "0:00:17"]

1. d4 {[%clk 0:03:00]}  Nf6 {[%clk 0:02:59]} 2. c4 {[%clk 0:03:01]}  e6 {[%clk 0:03:00]} 3. Nf3 {[%clk 0:03:00]}  d5 {[%clk 0:03:00]} 4. cxd5 {[%clk 0:03:00]}  exd5 {[%clk 0:03:00]} 5. Nc3 {[%clk 0:03:00]}  c6 {[%clk 0:02:58]} 6. Bg5 {[%clk 0:03:00]}  Be7 {[%clk 0:02:55]} 7. Qc2 {[%clk 0:02:59]}  h6 {[%clk 0:02:51]} 8. Bh4 {[%clk 0:02:58]}  O-O {[%clk 0:02:29]} 9. e3 {[%clk 0:02:58]}  Nh5 {[%clk 0:02:29]} 10. Bxe7 {[%clk 0:02:56]}  Qxe7 {[%clk 0:02:30]} 11. O-O-O {[%clk 0:02:48]}  a5 {[%clk 0:02:23]} 12. Kb1 {[%clk 0:02:46]}  Nf6 {[%clk 0:02:10]} 13. Bd3 {[%clk 0:02:40]}  Bg4 {[%clk 0:02:03]} 14. Rc1 {[%clk 0:02:37]}  Nbd7 {[%clk 0:02:00]} 15. Nd2 {[%clk 0:02:28]}  Be6 {[%clk 0:01:57]} 16. h3 {[%clk 0:02:26]}  b5 {[%clk 0:01:56]} 17. g4 {[%clk 0:02:12]}  Nb6 {[%clk 0:01:55]} 18. Rcg1 {[%clk 0:02:09]}  Nc4 {[%clk 0:01:54]} 19. g5 {[%clk 0:02:05]}  hxg5 {[%clk 0:01:53]} 20. Rxg5 {[%clk 0:02:04]}  Nxd2+ {[%clk 0:01:33]} 21. Qxd2 {[%clk 0:02:03]}  Ne4 {[%clk 0:01:34]} 22. Nxe4 {[%clk 0:01:58]}  dxe4 {[%clk 0:01:29]} 23. Rhg1 {[%clk 0:01:59]}  g6 {[%clk 0:01:05]} 24. Bxe4 {[%clk 0:01:48]}  Bxa2+ {[%clk 0:01:04]} 25. Kxa2 {[%clk 0:01:49]}  Qxe4 {[%clk 0:01:05]} 26. h4 {[%clk 0:01:40]}  Rae8 {[%clk 0:00:42]} 27. h5 {[%clk 0:01:39]}  Re6 {[%clk 0:00:42]} 28. hxg6 {[%clk 0:01:15]}  Rxg6 {[%clk 0:00:39]} 29. f4 {[%clk 0:01:05]}  Re8 {[%clk 0:00:27]} 30. f5 {[%clk 0:00:56]}  Rxg5 {[%clk 0:00:27]} 31. Rxg5+ {[%clk 0:00:57]}  Kf8 {[%clk 0:00:27]} 32. Qxa5 {[%clk 0:00:51]}  c5 {[%clk 0:00:23]} 33. Rh5 {[%clk 0:00:25]}  Kg7 {[%clk 0:00:21]} 34. f6+ {[%clk 0:00:19]}  Kg6 {[%clk 0:00:20]} 35. Re5 {[%clk 0:00:18]}  Rxe5 {[%clk 0:00:19]} 36. dxe5 {[%clk 0:00:19]}  Qc4+ {[%clk 0:00:19]} 37. Ka1 {[%clk 0:00:17]}  b4 {[%clk 0:00:19]} 38. Qc7 {[%clk 0:00:14]}  b3 {[%clk 0:00:17]} 0-1


[Site "https://www.chess.com"]

[Event "Titled Tuesday Blitz December 06 Late 2022"]
[White "Santos Flores, Alberto"]
[Black "Rama, Tejas"]
[WhiteFideId "3601234"]
[BlackFideId "30907381"]
[WhiteElo "2235"]
[BlackElo "2089"]
[Result "1-0"]
[Round "06"]
[TimeControl "180+1"]
[Date "2022.12.07"]
[WhiteClock "0:00:08"]
[BlackClock "0:00:05"]

1. d4 {[%clk 0:03:00]}  Nf6 {[%clk 0:02:59]} 2. Nf3 {[%clk 0:03:00]}  d5 {[%clk 0:02:59]} 3. c3 {[%clk 0:03:00]}  c5 {[%clk 0:02:53]} 4. Bf4 {[%clk 0:02:59]}  Nc6 {[%clk 0:02:46]} 5. e3 {[%clk 0:02:56]}  Qb6 {[%clk 0:02:44]} 6. Qb3 {[%clk 0:02:54]}  c4 {[%clk 0:02:44]} 7. Qc2 {[%clk 0:02:51]}  Bf5 {[%clk 0:02:43]} 8. Qc1 {[%clk 0:02:52]}  h6 {[%clk 0:02:35]} 9. Nbd2 {[%clk 0:02:47]}  Qa5 {[%clk 0:02:28]} 10. h3 {[%clk 0:02:42]}  g5 {[%clk 0:02:23]} 11. Bh2 {[%clk 0:02:40]}  e6 {[%clk 0:02:19]} 12. Be2 {[%clk 0:02:32]}  b5 {[%clk 0:02:09]} 13. a3 {[%clk 0:02:29]}  Qd8 {[%clk 0:02:01]} 14. Ne5 {[%clk 0:02:29]}  Ne7 {[%clk 0:01:50]} 15. O-O {[%clk 0:02:13]}  Bg7 {[%clk 0:01:16]} 16. Bf3 {[%clk 0:02:12]}  O-O {[%clk 0:01:13]} 17. Re1 {[%clk 0:02:10]}  Ne4 {[%clk 0:01:09]} 18. Nxe4 {[%clk 0:02:08]}  dxe4 {[%clk 0:01:06]} 19. Be2 {[%clk 0:02:06]}  Nd5 {[%clk 0:01:02]} 20. Nc6 {[%clk 0:01:31]}  Qb6 {[%clk 0:00:53]} 21. Nb4 {[%clk 0:01:32]}  a5 {[%clk 0:00:53]} 22. Nxd5 {[%clk 0:01:30]}  exd5 {[%clk 0:00:54]} 23. Qc2 {[%clk 0:01:21]}  Qg6 {[%clk 0:00:48]} 24. b3 {[%clk 0:01:15]}  h5 {[%clk 0:00:40]} 25. a4 {[%clk 0:01:11]}  cxb3 {[%clk 0:00:35]} 26. Qxb3 {[%clk 0:01:11]}  bxa4 {[%clk 0:00:22]} 27. Qxd5 {[%clk 0:01:10]}  Rac8 {[%clk 0:00:18]} 28. Qxa5 {[%clk 0:01:08]}  g4 {[%clk 0:00:13]} 29. hxg4 {[%clk 0:01:07]}  hxg4 {[%clk 0:00:12]} 30. Rxa4 {[%clk 0:01:00]}  Bh6 {[%clk 0:00:08]} 31. Rc4 {[%clk 0:00:38]}  Be6 {[%clk 0:00:04]} 32. Rxc8 {[%clk 0:00:37]}  Rxc8 {[%clk 0:00:05]} 33. d5 {[%clk 0:00:31]}  Bd7 {[%clk 0:00:03]} 34. c4 {[%clk 0:00:30]}  g3 {[%clk 0:00:02]} 35. Bxg3 {[%clk 0:00:29]}  Bxe3 {[%clk 0:00:03]} 36. fxe3 {[%clk 0:00:14]}  Qxg3 {[%clk 0:00:03]} 37. Bf1 {[%clk 0:00:13]}  Rc5 {[%clk 0:00:02]} 38. Qxc5 {[%clk 0:00:12]}  Qxe1 {[%clk 0:00:02]} 39. Qd4 {[%clk 0:00:12]}  Bf5 {[%clk 0:00:02]} 40. d6 {[%clk 0:00:11]}  Qa5 {[%clk 0:00:01]} 41. d7 {[%clk 0:00:10]}  Qd8 {[%clk 0:00:01]} 42. c5 {[%clk 0:00:09]}  Qxd7 {[%clk 0:00:01]} 43. Qxd7 {[%clk 0:00:09]}  Bxd7 {[%clk 0:00:02]} 44. Kf2 {[%clk 0:00:09]}  Bc6 {[%clk 0:00:02]} 45. Kg3 {[%clk 0:00:09]}  Kg7 {[%clk 0:00:03]} 46. Kf4 {[%clk 0:00:09]}  Kf6 {[%clk 0:00:04]} 47. Bc4 {[%clk 0:00:09]}  Kg6 {[%clk 0:00:04]} 48. g4 {[%clk 0:00:09]}  Kf6 {[%clk 0:00:05]} 49. g5+ {[%clk 0:00:08]}  Kg6 {[%clk 0:00:05]} 50. Bb3 {[%clk 0:00:09]}  Bb7 {[%clk 0:00:05]} 51. Ba4 {[%clk 0:00:08]}  f6 {[%clk 0:00:05]} 52. gxf6 {[%clk 0:00:08]}  Kxf6 {[%clk 0:00:06]} 53. c6 {[%clk 0:00:09]}  Bc8 {[%clk 0:00:07]} 54. Kxe4 {[%clk 0:00:10]}  Ke6 {[%clk 0:00:07]} 55. Kd4 {[%clk 0:00:10]}  Kd6 {[%clk 0:00:08]} 56. e4 {[%clk 0:00:10]}  Bg4 {[%clk 0:00:07]} 57. e5+ {[%clk 0:00:10]}  Kc7 {[%clk 0:00:07]} 58. Kc5 {[%clk 0:00:11]}  Be6 {[%clk 0:00:07]} 59. Bb5 {[%clk 0:00:10]}  Bf5 {[%clk 0:00:07]} 60. Bc4 {[%clk 0:00:11]}  Be4 {[%clk 0:00:07]} 61. Bd5 {[%clk 0:00:11]}  Bf5 {[%clk 0:00:07]} 62. e6 {[%clk 0:00:11]}  Bg4 {[%clk 0:00:06]} 63. e7 {[%clk 0:00:10]}  Bh5 {[%clk 0:00:06]} 64. Be6 {[%clk 0:00:10]}  Be8 {[%clk 0:00:05]} 65. Bd5 {[%clk 0:00:10]}  Bg6 {[%clk 0:00:05]} 66. Kd4 {[%clk 0:00:11]}  Kd6 {[%clk 0:00:05]} 67. Be4 {[%clk 0:00:07]}  Be8 {[%clk 0:00:04]} 68. c7 {[%clk 0:00:05]}  Kxc7 {[%clk 0:00:04]} 69. Ke5 {[%clk 0:00:06]}  Kd7 {[%clk 0:00:05]} 70. Kf6 {[%clk 0:00:06]}  Kd6 {[%clk 0:00:05]} 71. Bf5 {[%clk 0:00:06]}  Bc6 {[%clk 0:00:03]} 72. Kf7 {[%clk 0:00:06]}  Bd5+ {[%clk 0:00:03]} 73. Kf8 {[%clk 0:00:06]}  Bc6 {[%clk 0:00:04]} 74. Bg6 {[%clk 0:00:06]}  Ke5 {[%clk 0:00:04]} 75. Be8 {[%clk 0:00:07]}  Be4 {[%clk 0:00:04]} 76. Bf7 {[%clk 0:00:06]}  Bc6 {[%clk 0:00:04]} 77. Be8 {[%clk 0:00:06]}  Be4 {[%clk 0:00:05]} 78. Bb5 {[%clk 0:00:07]}  Bg6 {[%clk 0:00:05]} 79. Bc4 {[%clk 0:00:08]}  Bh5 {[%clk 0:00:05]} 80. Bf7 {[%clk 0:00:08]} 1-0


[Site "https://www.chess.com"]

[Event "Titled Tuesday Blitz December 06 Late 2022"]
[White "Shapiro, Daniel"]
[Black "Oro, Faustino"]
[WhiteFideId "2001780"]
[BlackFideId "20000197"]
[WhiteElo "2333"]
[BlackElo "1984"]
[Result "0-1"]
[Round "06"]
[TimeControl "180+1"]
[Date "2022.12.07"]
[WhiteClock "0:00:01"]
[BlackClock "0:00:22"]

1. d4 {[%clk 0:03:00]}  Nf6 {[%clk 0:02:57]} 2. c4 {[%clk 0:03:00]}  e6 {[%clk 0:02:57]} 3. g3 {[%clk 0:03:00]}  d5 {[%clk 0:02:56]} 4. Nf3 {[%clk 0:03:00]}  Be7 {[%clk 0:02:56]} 5. Bg2 {[%clk 0:02:59]}  O-O {[%clk 0:02:57]} 6. O-O {[%clk 0:02:59]}  dxc4 {[%clk 0:02:57]} 7. Ne5 {[%clk 0:03:00]}  Nc6 {[%clk 0:02:56]} 8. Bxc6 {[%clk 0:02:58]}  bxc6 {[%clk 0:02:57]} 9. Nxc6 {[%clk 0:02:59]}  Qd7 {[%clk 0:02:57]} 10. Nxe7+ {[%clk 0:03:00]}  Qxe7 {[%clk 0:02:58]} 11. Qa4 {[%clk 0:02:59]}  c5 {[%clk 0:02:50]} 12. Qxc4 {[%clk 0:02:59]}  cxd4 {[%clk 0:02:49]} 13. Qxd4 {[%clk 0:02:59]}  Bb7 {[%clk 0:02:48]} 14. Nc3 {[%clk 0:02:56]}  Rfd8 {[%clk 0:02:43]} 15. Qh4 {[%clk 0:02:55]}  h6 {[%clk 0:02:40]} 16. Be3 {[%clk 0:02:38]}  e5 {[%clk 0:02:21]} 17. Rfd1 {[%clk 0:02:23]}  Bc6 {[%clk 0:02:11]} 18. Rac1 {[%clk 0:01:52]}  Rac8 {[%clk 0:01:59]} 19. Rxd8+ {[%clk 0:01:26]}  Rxd8 {[%clk 0:01:58]} 20. Rd1 {[%clk 0:01:26]}  Rxd1+ {[%clk 0:01:45]} 21. Nxd1 {[%clk 0:01:27]}  Qe6 {[%clk 0:01:44]} 22. Nc3 {[%clk 0:01:13]}  Qf5 {[%clk 0:01:31]} 23. Qc4 {[%clk 0:00:43]}  Bd7 {[%clk 0:01:27]} 24. Qd3 {[%clk 0:00:36]}  Qh3 {[%clk 0:01:02]} 25. f3 {[%clk 0:00:30]}  Bc6 {[%clk 0:00:54]} 26. Qd8+ {[%clk 0:00:19]}  Kh7 {[%clk 0:00:54]} 27. Qd6 {[%clk 0:00:04]}  Ng4 {[%clk 0:00:36]} 28. Qxc6 {[%clk 0:00:04]}  Qxh2+ {[%clk 0:00:35]} 29. Kf1 {[%clk 0:00:04]}  Nxe3+ {[%clk 0:00:36]} 30. Ke1 {[%clk 0:00:05]}  Qxg3+ {[%clk 0:00:30]} 31. Kd2 {[%clk 0:00:04]}  Nf1+ {[%clk 0:00:30]} 32. Kd3 {[%clk 0:00:04]}  h5 {[%clk 0:00:27]} 33. Qe4+ {[%clk 0:00:03]}  Qg6 {[%clk 0:00:26]} 34. Nd5 {[%clk 0:00:01]}  h4 {[%clk 0:00:22]} 0-1


[Site "https://www.chess.com"]

[Event "Titled Tuesday Blitz December 06 Late 2022"]
[White "Simonovic, Miroslav"]
[Black "Floresvillar Gonzalez, Luis Migu"]
[WhiteFideId "919152"]
[BlackFideId "5100542"]
[WhiteElo "2057"]
[BlackElo "2040"]
[Result "1-0"]
[Round "06"]
[TimeControl "180+1"]
[Date "2022.12.07"]
[WhiteClock "0:01:15"]
[BlackClock "0:01:00"]

1. d4 {[%clk 0:03:00]}  e6 {[%clk 0:02:50]} 2. h4 {[%clk 0:03:00]}  c5 {[%clk 0:02:47]} 3. c3 {[%clk 0:02:59]}  cxd4 {[%clk 0:02:47]} 4. cxd4 {[%clk 0:03:00]}  b6 {[%clk 0:02:41]} 5. d5 {[%clk 0:02:54]}  Bb7 {[%clk 0:02:38]} 6. dxe6 {[%clk 0:02:54]}  dxe6 {[%clk 0:02:38]} 7. Qxd8+ {[%clk 0:02:54]}  Kxd8 {[%clk 0:02:37]} 8. Nc3 {[%clk 0:02:53]}  Nf6 {[%clk 0:02:36]} 9. Bf4 {[%clk 0:02:49]}  Bb4 {[%clk 0:02:33]} 10. O-O-O+ {[%clk 0:02:49]}  Ke7 {[%clk 0:02:32]} 11. Nb5 {[%clk 0:02:38]}  Nc6 {[%clk 0:02:18]} 12. a3 {[%clk 0:02:35]}  Bc5 {[%clk 0:02:17]} 13. e3 {[%clk 0:02:29]}  Rhd8 {[%clk 0:02:13]} 14. Rxd8 {[%clk 0:02:22]}  Rxd8 {[%clk 0:02:11]} 15. b4 {[%clk 0:02:22]}  a6 {[%clk 0:02:09]} 16. bxc5 {[%clk 0:02:13]}  axb5 {[%clk 0:02:09]} 17. Bd6+ {[%clk 0:02:06]}  Rxd6 {[%clk 0:02:04]} 18. cxd6+ {[%clk 0:02:06]}  Kxd6 {[%clk 0:02:04]} 19. Bxb5 {[%clk 0:02:03]}  Ne5 {[%clk 0:02:05]} 20. f3 {[%clk 0:01:58]}  Nd5 {[%clk 0:01:58]} 21. e4 {[%clk 0:01:55]}  Nc3 {[%clk 0:01:51]} 22. Bf1 {[%clk 0:01:46]}  f5 {[%clk 0:01:46]} 23. Kc2 {[%clk 0:01:46]}  Na4 {[%clk 0:01:46]} 24. exf5 {[%clk 0:01:43]}  exf5 {[%clk 0:01:45]} 25. Ne2 {[%clk 0:01:42]}  Nc4 {[%clk 0:01:31]} 26. Nd4 {[%clk 0:01:41]}  Ne3+ {[%clk 0:01:29]} 27. Kb3 {[%clk 0:01:35]}  Nc5+ {[%clk 0:01:28]} 28. Kb2 {[%clk 0:01:30]}  Ke5 {[%clk 0:01:24]} 29. Nb3 {[%clk 0:01:28]}  Nxf1 {[%clk 0:01:20]} 30. Rxf1 {[%clk 0:01:27]}  Ba6 {[%clk 0:01:17]} 31. Re1+ {[%clk 0:01:27]}  Kf4 {[%clk 0:01:16]} 32. Nxc5 {[%clk 0:01:27]}  bxc5 {[%clk 0:01:16]} 33. Re7 {[%clk 0:01:26]}  g6 {[%clk 0:01:11]} 34. Rxh7 {[%clk 0:01:26]}  Kg3 {[%clk 0:01:12]} 35. Rh6 {[%clk 0:01:26]}  Bd3 {[%clk 0:01:09]} 36. Rxg6+ {[%clk 0:01:25]}  Kxh4 {[%clk 0:01:10]} 37. Rg7 {[%clk 0:01:20]}  f4 {[%clk 0:01:09]} 38. Kc3 {[%clk 0:01:20]}  Bf1 {[%clk 0:01:04]} 39. a4 {[%clk 0:01:17]}  Kh5 {[%clk 0:01:03]} 40. a5 {[%clk 0:01:16]}  Kh6 {[%clk 0:01:03]} 41. Rg4 {[%clk 0:01:16]}  Kh5 {[%clk 0:01:01]} 42. Rxf4 {[%clk 0:01:16]}  Bxg2 {[%clk 0:01:01]} 43. a6 {[%clk 0:01:15]}  Kg5 {[%clk 0:01:00]} 44. Rg4+ {[%clk 0:01:15]} 1-0


[Site "https://www.chess.com"]

[Event "Titled Tuesday Blitz December 06 Late 2022"]
[White "Souleidis, Georgios"]
[Black "Erdogmus, Yagiz Kaan"]
[WhiteFideId "4206827"]
[BlackFideId "44599790"]
[WhiteElo "2401"]
[BlackElo "2353"]
[Result "1-0"]
[Round "06"]
[TimeControl "180+1"]
[Date "2022.12.06"]
[WhiteClock "0:00:19"]
[BlackClock "0:00:01"]

1. e4 {[%clk 0:03:00]}  e5 {[%clk 0:02:58]} 2. Nc3 {[%clk 0:03:00]}  Nf6 {[%clk 0:02:54]} 3. d4 {[%clk 0:03:00]}  exd4 {[%clk 0:02:52]} 4. Qxd4 {[%clk 0:03:01]}  Nc6 {[%clk 0:02:51]} 5. Qd3 {[%clk 0:03:01]}  Bb4 {[%clk 0:02:45]} 6. Bd2 {[%clk 0:03:02]}  O-O {[%clk 0:02:42]} 7. O-O-O {[%clk 0:03:01]}  Re8 {[%clk 0:02:42]} 8. Nge2 {[%clk 0:03:00]}  d6 {[%clk 0:02:36]} 9. Bg5 {[%clk 0:02:58]}  h6 {[%clk 0:02:32]} 10. Bxf6 {[%clk 0:02:58]}  Qxf6 {[%clk 0:02:31]} 11. Nd5 {[%clk 0:02:58]}  Qd8 {[%clk 0:02:31]} 12. Nxb4 {[%clk 0:02:57]}  Nxb4 {[%clk 0:02:32]} 13. Qd2 {[%clk 0:02:57]}  Rxe4 {[%clk 0:02:15]} 14. f3 {[%clk 0:02:43]}  Rc4 {[%clk 0:01:24]} 15. Nd4 {[%clk 0:01:48]}  Rxd4 {[%clk 0:00:33]} 16. Qxd4 {[%clk 0:01:49]}  a5 {[%clk 0:00:32]} 17. a3 {[%clk 0:01:43]}  Nc6 {[%clk 0:00:32]} 18. Qd2 {[%clk 0:01:43]}  Be6 {[%clk 0:00:31]} 19. Bb5 {[%clk 0:01:32]}  Ne7 {[%clk 0:00:31]} 20. Rhe1 {[%clk 0:01:31]}  Ng6 {[%clk 0:00:31]} 21. f4 {[%clk 0:01:27]}  Nh4 {[%clk 0:00:23]} 22. Qf2 {[%clk 0:01:21]}  c6 {[%clk 0:00:21]} 23. Bd3 {[%clk 0:01:19]}  Bd5 {[%clk 0:00:11]} 24. g3 {[%clk 0:01:12]}  Nf3 {[%clk 0:00:11]} 25. Re3 {[%clk 0:01:11]}  Nd4 {[%clk 0:00:11]} 26. c4 {[%clk 0:00:34]}  Be6 {[%clk 0:00:09]} 27. f5 {[%clk 0:00:34]}  Bd7 {[%clk 0:00:06]} 28. g4 {[%clk 0:00:32]}  Qg5 {[%clk 0:00:05]} 29. h3 {[%clk 0:00:30]}  Re8 {[%clk 0:00:04]} 30. Re1 {[%clk 0:00:31]}  Re5 {[%clk 0:00:03]} 31. Kb1 {[%clk 0:00:30]}  f6 {[%clk 0:00:03]} 32. Rxe5 {[%clk 0:00:29]}  fxe5 {[%clk 0:00:04]} 33. c5 {[%clk 0:00:25]}  Qf6 {[%clk 0:00:02]} 34. cxd6 {[%clk 0:00:25]}  Qxd6 {[%clk 0:00:03]} 35. Bc4+ {[%clk 0:00:25]}  Kh7 {[%clk 0:00:02]} 36. Qe3 {[%clk 0:00:24]}  Qc5 {[%clk 0:00:03]} 37. Bd3 {[%clk 0:00:22]}  Nb3 {[%clk 0:00:01]} 38. f6+ {[%clk 0:00:19]} 1-0


[Site "https://www.chess.com"]